fUST/lending_fUST_20250221
["ID","MTS","AMOUNT","RATE_DAILY","PERIOD"]
[353900066,1740119444852,-1529.35,0.00013945,2]
[353900067,1740119444861,-500.0,0.00013945,2]
[353900068,1740119444871,-500.0,0.00013945,2]
[353900069,1740119444880,-500.0,0.00013945,2]
[353900070,1740119444890,-260.18302552,0.00013945,2]
[353900071,1740119444899,-500.0,0.00013945,2]
[353900072,1740119444909,-4474.47,0.00013945,2]
[353900073,1740119444919,-500.0,0.00013945,2]
[353900074,1740119444928,-521.58,0.00013945,2]
[353900075,1740119444937,-1002.17246199,0.00013988,2]
[353900076,1740119444947,-151.0,0.00014,2]
[353900077,1740119444956,-151.0,0.00014,2]
[353900078,1740119444966,-152398.33975248,0.00014,2]
[353900079,1740119444975,-500.0,0.00014027,2]
[353900080,1740119444984,-822.8,0.00014027,2]
[353900081,1740119444993,-500.0,0.00014027,2]
[353900082,1740119445002,-500.0,0.00014027,2]
[353900083,1740119445012,-500.0,0.00014027,2]
[353900084,1740119445021,-500.0,0.00014027,2]
[353900085,1740119445030,-500.0,0.00014027,2]
[353900086,1740119445040,-500.0,0.00014027,2]
[353900087,1740119445049,-609.59,0.00014027,2]
[353900088,1740119445059,-500.0,0.00014027,2]
[353900089,1740119445068,-500.0,0.00014027,2]
[353900090,1740119445077,-500.0,0.00014027,2]
[353900091,1740119445087,-500.0,0.00014027,2]
[353900092,1740119445096,-500.0,0.00014027,2]
[353900093,1740119445106,-500.0,0.00014027,2]
[353900094,1740119445115,-632.29,0.00014027,2]
[353900095,1740119445125,-500.0,0.00014027,2]
[353900096,1740119445136,-500.0,0.00014027,2]
[353900097,1740119445146,-500.0,0.00014027,2]
[353900098,1740119445155,-500.0,0.00014027,2]
[353900099,1740119445165,-500.0,0.00014027,2]
[353900100,1740119445174,-500.24904968,0.00014027,2]
[353900101,1740119445184,-747.26,0.00014027,2]
[353900102,1740119445193,-500.0,0.00014027,2]
[353900103,1740119445204,-567.67,0.00014027,2]
[353900104,1740119445213,-500.0,0.00014027,2]
[353900105,1740119445222,-500.0,0.00014027,2]
[353900106,1740119445231,-509.64,0.00014027,2]
[353900107,1740119445241,-500.0,0.00014027,2]
[353900108,1740119445251,-500.0,0.00014027,2]
[353900109,1740119445260,-500.0,0.00014027,2]
[353900110,1740119445270,-500.0,0.00014027,2]
[353900111,1740119445279,-217.78973982,0.00014027,2]
[353900112,1740119445289,-500.0,0.00014027,2]
[353900113,1740119445298,-500.0,0.00014027,2]
[353900114,1740119445307,-500.0,0.00014027,2]
[353900115,1740119445317,-360.46640634,0.00014027,2]
[353900116,1740119445326,-500.0,0.00014027,2]
[353900118,1740119445336,-500.0,0.00014027,2]
[353900119,1740119445346,-1000.0,0.00014027,2]
[353900120,1740119445355,-500.0,0.00014027,2]
[353900121,1740119445364,-1332.43,0.00014027,2]
[353900122,1740119445373,-500.0,0.00014027,2]
[353900123,1740119445383,-500.0,0.00014027,2]
[353900124,1740119445392,-500.0,0.00014027,2]
[353900125,1740119445402,-1632.63,0.00014027,2]
[353900126,1740119445413,-500.0,0.00014027,2]
[353900127,1740119445424,-12895.71,0.00014027,2]
[353900128,1740119445434,-1825.65,0.00014027,2]
[353900129,1740119445444,-5094.69,0.00014027,2]
[353900130,1740119445453,-1658.55,0.00014027,2]
[353900131,1740119445464,-500.0,0.00014027,2]
[353900132,1740119445474,-970.01,0.00014027,2]
[353900133,1740119445484,-500.0,0.00014027,2]
[353900134,1740119445495,-716.97,0.00014027,2]
[353900135,1740119445506,-500.0,0.00014027,2]
[353900136,1740119445515,-889.73,0.00014027,2]
[353900138,1740119445525,-2539.53,0.00014027,2]
[353900139,1740119445534,-571.96,0.00014027,2]
[353900140,1740119445544,-500.0,0.00014027,2]
[353900141,1740119445553,-500.0,0.00014027,2]
[353900142,1740119445563,-500.0,0.00014027,2]
[353900146,1740119445664,-23184.99,0.00014027,2]
[353900147,1740119445675,-1532.0,0.00014027,2]
[353900148,1740119445685,-500.0,0.00014027,2]
[353900149,1740119445695,-500.0,0.00014027,2]
[353900150,1740119445705,-1300.19,0.00014027,2]
[353900151,1740119445715,-1032.31,0.00014027,2]
[353900152,1740119445725,-500.0,0.00014027,2]
[353900153,1740119445735,-517.04,0.00014027,2]
[353900154,1740119445745,-2344.36,0.00014027,2]
[353900155,1740119445755,-891.26,0.00014027,2]
[353900156,1740119445764,-500.0,0.00014027,2]
[353900157,1740119445774,-4367.26,0.00014027,2]
[353900158,1740119445784,-500.0,0.00014027,2]
[353900159,1740119445794,-822.25,0.00014027,2]
[353900160,1740119445803,-500.0,0.00014027,2]
[353900161,1740119445812,-10184.0,0.00014027,2]
[353900162,1740119445822,-692.82,0.00014027,2]
[353900163,1740119445832,-1434.95,0.00014027,2]
[353900164,1740119445842,-2392.96,0.00014027,2]
[353900165,1740119445851,-2864.58,0.00014027,2]
[353900166,1740119445860,-1738.41,0.00014027,2]
[353900167,1740119445870,-760.7,0.00014027,2]
[353900168,1740119445880,-1375.81,0.00014027,2]
[353900169,1740119445889,-685.81,0.00014027,2]
[353900170,1740119445899,-500.0,0.00014027,2]
[353900171,1740119445909,-942.21,0.00014027,2]
[353900172,1740119445918,-2104.53,0.00014027,2]
[353900173,1740119445927,-519.51,0.00014027,2]
[353900174,1740119445939,-810.59,0.00014027,2]
[353900175,1740119445949,-500.0,0.00014027,2]
[353900176,1740119445958,-500.0,0.00014027,2]
[353900177,1740119445968,-500.0,0.00014027,2]
[353900178,1740119445978,-500.0,0.00014027,2]
[353900179,1740119445987,-1529.35,0.00014027,2]
[353900180,1740119445998,-500.0,0.00014027,2]
[353900181,1740119446008,-500.0,0.00014027,2]
[353900182,1740119446018,-500.0,0.00014027,2]
[353900183,1740119446028,-500.0,0.00014027,2]
[353900184,1740119446039,-4474.47,0.00014027,2]
[353900185,1740119446050,-500.0,0.00014027,2]
[353900186,1740119446060,-521.58,0.00014027,2]
[353900187,1740119446069,-500.0,0.00014054,2]
[353900188,1740119446078,-501.15348366,0.00014073,2]
[353900189,1740119446087,-500.0,0.00014073,2]
[353900190,1740119446096,-500.0,0.00014073,2]
[353900191,1740119446106,-500.0,0.00014073,2]
[353900192,1740119446115,-500.44003634,0.00014073,2]
[353900193,1740119446124,-156.65484187,0.00014073,2]
[353900194,1740119446133,-500.15058549,0.00014073,2]
[353900195,1740119446142,-500.22613263,0.00014073,2]
[353900196,1740119446151,-500.2436958,0.00014073,2]
[353900197,1740119446161,-500.0,0.00014073,2]
[353900198,1740119446170,-500.0,0.00014073,2]
[353900199,1740119446179,-417.22224198,0.00014073,2]
[353900200,1740119446189,-500.0,0.00014073,2]
[353900201,1740119446198,-500.0,0.00014073,2]
[353900202,1740119446207,-500.38026704,0.00014073,2]
[353900203,1740119446216,-500.0,0.00014073,2]
[353900204,1740119446225,-519.05548856,0.00014073,2]
[353900205,1740119446235,-500.97254484,0.00014073,2]
[353900206,1740119446244,-285.28605284,0.00014073,2]
[353900207,1740119446254,-500.0,0.00014073,2]
[353900208,1740119446263,-500.0,0.00014073,2]
[353900209,1740119446273,-500.0,0.00014073,2]
[353900210,1740119446282,-500.0,0.00014073,2]
[353900211,1740119446292,-500.47489498,0.00014073,2]
[353900212,1740119446301,-597.46128311,0.00014073,2]
[353900213,1740119446310,-502.47630544,0.00014073,2]
[353900214,1740119446320,-500.0,0.00014073,2]
[353900215,1740119446329,-160.0,0.00014078,3]
[353900216,1740119446338,-151.0,0.000141,2]
[353900217,1740119446347,-151.0,0.000141,2]
[353900218,1740119446356,-308.01581002,0.00014108,2]
[353900219,1740119446366,-500.0,0.00014108,2]
[353900220,1740119446375,-360.20716447,0.00014108,2]
[353900221,1740119446384,-500.0,0.00014108,2]
[353900222,1740119446393,-500.0,0.00014108,2]
[353900223,1740119446403,-500.0,0.00014109,2]
[353900224,1740119446414,-822.8,0.00014109,2]
[353900225,1740119446424,-500.0,0.00014109,2]
[353900226,1740119446434,-500.0,0.00014109,2]
[353900227,1740119446443,-500.0,0.00014109,2]
[353900228,1740119446452,-500.0,0.00014109,2]
[353900229,1740119446462,-500.0,0.00014109,2]
[353900230,1740119446472,-500.0,0.00014109,2]
[353900231,1740119446482,-609.59,0.00014109,2]
[353900232,1740119446492,-500.0,0.00014109,2]
[353900233,1740119446503,-500.0,0.00014109,2]
[353900234,1740119446513,-500.0,0.00014109,2]
[353900235,1740119446523,-500.0,0.00014109,2]
[353900236,1740119446532,-500.0,0.00014109,2]
[353900237,1740119446542,-500.0,0.00014109,2]
[353900238,1740119446553,-632.29,0.00014109,2]
[353900239,1740119446563,-500.0,0.00014109,2]
[353900240,1740119446574,-500.0,0.00014109,2]
[353900241,1740119446584,-500.0,0.00014109,2]
[353900242,1740119446593,-500.0,0.00014109,2]
[353900243,1740119446603,-500.0,0.00014109,2]
[353900244,1740119446613,-747.26,0.00014109,2]
[353900245,1740119446622,-183.7465314,0.00014109,2]
[353900246,1740119446632,-567.67,0.00014109,2]
[353900247,1740119446643,-500.0,0.00014109,2]
[353900248,1740119446653,-500.0,0.00014109,2]
[353900249,1740119446664,-509.64,0.00014109,2]
[353900250,1740119446674,-500.0,0.00014109,2]
[353900251,1740119446683,-500.0,0.00014109,2]
[353900252,1740119446692,-500.0,0.00014109,2]
[353900253,1740119446701,-500.0,0.00014109,2]
[353900254,1740119446710,-500.0,0.00014109,2]
[353900255,1740119446720,-500.0,0.00014109,2]
[353900256,1740119446730,-500.0,0.00014109,2]
[353900257,1740119446739,-500.0,0.00014109,2]
[353900258,1740119446748,-500.0,0.00014109,2]
[353900259,1740119446757,-365.19142662,0.00014109,2]
[353900260,1740119446767,-500.0,0.00014109,2]
[353900261,1740119446777,-1332.43,0.00014109,2]
[353900262,1740119446786,-500.0,0.00014109,2]
[353900263,1740119446795,-500.0,0.00014109,2]
[353900264,1740119446805,-500.0,0.00014109,2]
[353900265,1740119446814,-1632.63,0.00014109,2]
[353900266,1740119446823,-507.97636152,0.00014109,2]
[353900267,1740119446832,-12895.71,0.00014109,2]
[353900268,1740119446841,-1825.65,0.00014109,2]
[353900269,1740119446850,-5094.69,0.00014109,2]
[353900270,1740119446859,-1658.55,0.00014109,2]
[353900271,1740119446868,-500.0,0.00014109,2]
[353900272,1740119446877,-970.01,0.00014109,2]
[353900273,1740119446886,-500.0,0.00014109,2]
[353900274,1740119446895,-716.97,0.00014109,2]
[353900275,1740119446904,-500.0,0.00014109,2]
[353900276,1740119446913,-889.73,0.00014109,2]
[353900277,1740119446923,-2539.53,0.00014109,2]
[353900278,1740119446932,-571.96,0.00014109,2]
[353900279,1740119446941,-500.0,0.00014109,2]
[353900280,1740119446951,-500.0,0.00014109,2]
[353900281,1740119446960,-500.0,0.00014109,2]
[353900282,1740119446969,-23184.99,0.00014109,2]
[353900283,1740119446978,-1532.0,0.00014109,2]
[353900284,1740119446987,-500.0,0.00014109,2]
[353900285,1740119446996,-500.0,0.00014109,2]
[353900286,1740119447005,-1300.19,0.00014109,2]
[353900287,1740119447014,-1032.31,0.00014109,2]
[353900288,1740119447023,-500.0,0.00014109,2]
[353900289,1740119447033,-517.04,0.00014109,2]
[353900290,1740119447042,-2344.36,0.00014109,2]
[353900291,1740119447051,-891.26,0.00014109,2]
[353900292,1740119447060,-500.0,0.00014109,2]
[353900293,1740119447070,-4367.26,0.00014109,2]
[353900294,1740119447079,-500.0,0.00014109,2]
[353900295,1740119447089,-822.25,0.00014109,2]
[353900296,1740119447098,-500.0,0.00014109,2]
[353900297,1740119447107,-10184.0,0.00014109,2]
[353900298,1740119447116,-692.82,0.00014109,2]
[353900299,1740119447125,-1434.95,0.00014109,2]
[353900300,1740119447134,-2392.96,0.00014109,2]
[353900301,1740119447144,-2864.58,0.00014109,2]
[353900302,1740119447153,-1738.41,0.00014109,2]
[353900303,1740119447161,-760.7,0.00014109,2]
[353900304,1740119447171,-1375.81,0.00014109,2]
[353900305,1740119447180,-685.81,0.00014109,2]
[353900306,1740119447189,-500.0,0.00014109,2]
[353900307,1740119447198,-942.21,0.00014109,2]
[353900308,1740119447208,-2104.53,0.00014109,2]
[353900309,1740119447217,-519.51,0.00014109,2]
[353900310,1740119447226,-810.59,0.00014109,2]
[353900311,1740119447235,-500.0,0.00014109,2]
[353900312,1740119447244,-500.0,0.00014109,2]
[353900313,1740119447254,-500.0,0.00014109,2]
[353900314,1740119447263,-500.0,0.00014109,2]
[353900315,1740119447272,-1529.35,0.00014109,2]
[353900316,1740119447281,-500.0,0.00014109,2]
[353900317,1740119447291,-500.0,0.00014109,2]
[353900318,1740119447300,-500.0,0.00014109,2]
[353900319,1740119447309,-500.0,0.00014109,2]
[353900320,1740119447318,-4474.47,0.00014109,2]
[353900321,1740119447328,-500.0,0.00014109,2]
[353900322,1740119447337,-521.58,0.00014109,2]
[353900323,1740119447346,-500.0,0.00014173,2]
[353900324,1740119447355,-500.0,0.00014191,2]
[353900325,1740119447363,-822.8,0.00014191,2]
[353900326,1740119447373,-500.0,0.00014191,2]
[353900327,1740119447381,-500.0,0.00014191,2]
[353900328,1740119447391,-500.0,0.00014191,2]
[353900329,1740119447400,-500.0,0.00014191,2]
[353900330,1740119447410,-500.0,0.00014191,2]
[353900331,1740119447424,-500.0,0.00014191,2]
[353900332,1740119447433,-609.59,0.00014191,2]
[353900333,1740119447442,-500.0,0.00014191,2]
[353900334,1740119447451,-500.0,0.00014191,2]
[353900335,1740119447461,-337.8382426,0.00014191,2]
[353900336,1740119447548,-500.0,0.00014191,2]
[353900337,1740119447557,-500.0,0.00014191,2]
[353900338,1740119447566,-500.0,0.00014191,2]
[353900339,1740119447575,-632.29,0.00014191,2]
[353900340,1740119447584,-514.52457317,0.00014191,2]
[353900341,1740119447593,-500.0,0.00014191,2]
[353900342,1740119447602,-500.0,0.00014191,2]
[353900343,1740119447611,-500.0,0.00014191,2]
[353900344,1740119447621,-500.0,0.00014191,2]
[353900345,1740119447630,-747.26,0.00014191,2]
[353900346,1740119447639,-567.67,0.00014191,2]
[353900347,1740119447648,-500.0,0.00014191,2]
[353900348,1740119447659,-500.0,0.00014191,2]
[353900349,1740119447668,-509.64,0.00014191,2]
[353900350,1740119447677,-500.0,0.00014191,2]
[353900351,1740119447686,-500.0,0.00014191,2]
[353900352,1740119447695,-500.0,0.00014191,2]
[353900353,1740119447705,-500.0,0.00014191,2]
[353900354,1740119447714,-500.0,0.00014191,2]
[353900355,1740119447724,-500.0,0.00014191,2]
[353900356,1740119447733,-500.0,0.00014191,2]
[353900357,1740119447742,-625.66626844,0.00014191,2]
[353900358,1740119447751,-500.0,0.00014191,2]
[353900359,1740119447760,-500.0,0.00014191,2]
[353900360,1740119447770,-1332.43,0.00014191,2]
[353900361,1740119447779,-500.0,0.00014191,2]
[353900362,1740119447788,-500.0,0.00014191,2]
[353900363,1740119447797,-500.0,0.00014191,2]
[353900364,1740119447806,-1632.63,0.00014191,2]
[353900365,1740119447815,-12895.71,0.00014191,2]
[353900366,1740119447824,-1825.65,0.00014191,2]
[353900367,1740119447835,-5094.69,0.00014191,2]
[353900368,1740119447844,-1658.55,0.00014191,2]
[353900369,1740119447853,-500.0,0.00014191,2]
[353900370,1740119447862,-970.01,0.00014191,2]
[353900371,1740119447871,-500.0,0.00014191,2]
[353900372,1740119447880,-716.97,0.00014191,2]
[353900373,1740119447890,-500.0,0.00014191,2]
[353900374,1740119447899,-889.73,0.00014191,2]
[353900375,1740119447908,-2539.53,0.00014191,2]
[353900376,1740119447918,-571.96,0.00014191,2]
[353900377,1740119447927,-500.0,0.00014191,2]
[353900378,1740119447936,-500.0,0.00014191,2]
[353900379,1740119447946,-500.0,0.00014191,2]
[353900380,1740119447955,-23184.99,0.00014191,2]
[353900381,1740119447965,-1532.0,0.00014191,2]
[353900382,1740119447974,-500.0,0.00014191,2]
[353900383,1740119447985,-500.0,0.00014191,2]
[353900384,1740119447994,-1300.19,0.00014191,2]
[353900385,1740119448004,-1032.31,0.00014191,2]
[353900386,1740119448013,-491.74280467,0.00014191,2]
[353900387,1740119448022,-517.04,0.00014191,2]
[353900388,1740119448031,-2344.36,0.00014191,2]
[353900389,1740119448041,-891.26,0.00014191,2]
[353900390,1740119448050,-500.0,0.00014191,2]
[353900391,1740119448060,-4367.26,0.00014191,2]
[353900392,1740119448069,-500.0,0.00014191,2]
[353900393,1740119448078,-822.25,0.00014191,2]
[353900394,1740119448088,-241.48260556,0.00014191,2]
[353900395,1740119448097,-10184.0,0.00014191,2]
[353900396,1740119448107,-692.82,0.00014191,2]
[353900397,1740119448118,-1434.95,0.00014191,2]
[353900398,1740119448127,-2392.96,0.00014191,2]
[353900399,1740119448137,-2864.58,0.00014191,2]
[353900400,1740119448146,-1738.41,0.00014191,2]
[353900401,1740119448156,-760.7,0.00014191,2]
[353900402,1740119448166,-1375.81,0.00014191,2]
[353900403,1740119448176,-685.81,0.00014191,2]
[353900404,1740119448185,-500.0,0.00014191,2]
[353900405,1740119448195,-942.21,0.00014191,2]
[353900406,1740119448204,-2104.53,0.00014191,2]
[353900407,1740119448215,-519.51,0.00014191,2]
[353900408,1740119448225,-810.59,0.00014191,2]
[353900409,1740119448235,-500.0,0.00014191,2]
[353900410,1740119448245,-500.0,0.00014191,2]
[353900411,1740119448255,-500.0,0.00014191,2]
[353900412,1740119448265,-500.0,0.00014191,2]
[353900413,1740119448275,-1529.35,0.00014191,2]
[353900414,1740119448285,-500.0,0.00014191,2]
[353900415,1740119448296,-500.0,0.00014191,2]
[353900416,1740119448306,-500.0,0.00014191,2]
[353900417,1740119448316,-500.0,0.00014191,2]
[353900418,1740119448326,-4474.47,0.00014191,2]
[353900419,1740119448336,-500.0,0.00014191,2]
[353900420,1740119448346,-521.58,0.00014191,2]
[353900421,1740119448355,-157.9585571,0.00014256,2]
[353900422,1740119448366,-157.9585571,0.00014256,2]
[353900423,1740119448375,-157.9585571,0.00014256,2]
[353900424,1740119448385,-157.9585571,0.00014256,2]
[353900425,1740119448404,-157.9585571,0.00014256,2]
[353900426,1740119448425,-157.95,0.00014256,2]
[353900427,1740119448440,-653.87299429,0.00014256,2]
[353900428,1740119448452,-653.87299429,0.00014256,2]
[353900429,1740119448469,-653.87299429,0.00014256,2]
[353900430,1740119448485,-653.87299429,0.00014256,2]
[353900431,1740119448501,-653.87299429,0.00014256,2]
[353900432,1740119448516,-653.87299429,0.00014256,2]
[353900433,1740119448532,-653.87299429,0.00014256,2]
[353900434,1740119448546,-653.87299429,0.00014256,2]
[353900435,1740119448559,-653.87299429,0.00014256,2]
[353900436,1740119448574,-653.87299429,0.00014256,2]
[353900437,1740119448589,-653.87299429,0.00014256,2]
[353900438,1740119448605,-653.87299429,0.00014256,2]
[353900439,1740119448619,-653.87299429,0.00014256,2]
[353900440,1740119448631,-653.87299429,0.00014256,2]
[353900441,1740119448644,-653.87299429,0.00014256,2]
[353900442,1740119448659,-653.87299429,0.00014256,2]
[353900443,1740119448674,-653.87299429,0.00014256,2]
[353900444,1740119448688,-653.87299429,0.00014256,2]
[353900445,1740119448702,-653.87299429,0.00014256,2]
[353900446,1740119448717,-653.87,0.00014256,2]
[353900447,1740119448730,-865.29765616,0.00014256,2]
[353900448,1740119448741,-865.29765616,0.00014256,2]
[353900449,1740119448752,-865.29765616,0.00014256,2]
[353900450,1740119448766,-865.29765616,0.00014256,2]
[353900451,1740119448781,-865.29765616,0.00014256,2]
[353900452,1740119448794,-865.29765616,0.00014256,2]
[353900453,1740119448806,-865.29765616,0.00014256,2]
[353900454,1740119448818,-865.29765616,0.00014256,2]
[353900455,1740119448832,-865.29765616,0.00014256,2]
[353900456,1740119448844,-865.29765616,0.00014256,2]
[353900457,1740119448855,-865.29765616,0.00014256,2]
[353900458,1740119448867,-865.29765616,0.00014256,2]
[353900459,1740119448879,-865.29765616,0.00014256,2]
[353900460,1740119448891,-865.29765616,0.00014256,2]
[353900461,1740119448903,-865.29765616,0.00014256,2]
[353900462,1740119448915,-865.29765616,0.00014256,2]
[353900463,1740119448927,-865.29765616,0.00014256,2]
[353900464,1740119448938,-865.29765616,0.00014256,2]
[353900465,1740119448950,-865.29765616,0.00014256,2]
[353900466,1740119448962,-865.29,0.00014256,2]
[353900467,1740119448974,-7438.69753278,0.00014271,2]
[353900468,1740119448986,-317.31127923,0.00014273,2]
[353900469,1740119448997,-822.8,0.00014273,2]
[353900470,1740119449008,-500.0,0.00014273,2]
[353900471,1740119449020,-506.26753492,0.00014273,2]
[353900472,1740119449032,-500.0,0.00014273,2]
[353900473,1740119449043,-500.0,0.00014273,2]
[353900474,1740119449055,-500.0,0.00014273,2]
[353900475,1740119449066,-500.0,0.00014273,2]
[353900476,1740119449078,-609.59,0.00014273,2]
[353900477,1740119449088,-500.0,0.00014273,2]
[353900478,1740119449100,-500.0,0.00014273,2]
[353900479,1740119449111,-500.0,0.00014273,2]
[353900480,1740119449124,-500.0,0.00014273,2]
[353900481,1740119449135,-500.0,0.00014273,2]
[353900482,1740119449147,-632.29,0.00014273,2]
[353900483,1740119449159,-500.0,0.00014273,2]
[353900484,1740119449170,-219.05290424,0.00014273,2]
[353900485,1740119449182,-500.0,0.00014273,2]
[353900486,1740119449195,-500.0,0.00014273,2]
[353900487,1740119449207,-747.26,0.00014273,2]
[353900488,1740119449219,-567.67,0.00014273,2]
[353900489,1740119449230,-500.0,0.00014273,2]
[353900490,1740119449242,-500.0,0.00014273,2]
[353900491,1740119449254,-509.64,0.00014273,2]
[353900492,1740119449266,-500.0,0.00014273,2]
[353900493,1740119449277,-500.0,0.00014273,2]
[353900494,1740119449288,-500.0,0.00014273,2]
[353900495,1740119449301,-500.0,0.00014273,2]
[353900496,1740119449314,-500.0,0.00014273,2]
[353900497,1740119449326,-500.0,0.00014273,2]
[353900498,1740119449338,-500.0,0.00014273,2]
[353900499,1740119449349,-500.0,0.00014273,2]
[353900500,1740119449361,-500.0,0.00014273,2]
[353900501,1740119449373,-1332.43,0.00014273,2]
[353900502,1740119449385,-500.0,0.00014273,2]
[353900503,1740119449396,-500.0,0.00014273,2]
[353900504,1740119449408,-500.0,0.00014273,2]
[353900505,1740119449425,-1632.63,0.00014273,2]
[353900506,1740119449436,-12895.71,0.00014273,2]
[353900507,1740119449448,-1825.65,0.00014273,2]
[353900508,1740119449460,-5094.69,0.00014273,2]
[353900509,1740119449471,-1658.55,0.00014273,2]
[353900510,1740119449483,-500.0,0.00014273,2]
[353900511,1740119449616,-970.01,0.00014273,2]
[353900512,1740119449635,-357.65815289,0.00014273,2]
[353900513,1740119449645,-716.97,0.00014273,2]
[353900514,1740119449655,-500.0,0.00014273,2]
[353900515,1740119449664,-889.73,0.00014273,2]
[353900516,1740119449675,-2539.53,0.00014273,2]
[353900517,1740119449684,-571.96,0.00014273,2]
[353900518,1740119449693,-500.0,0.00014273,2]
[353900519,1740119449702,-500.0,0.00014273,2]
[353900520,1740119449711,-500.0,0.00014273,2]
[353900521,1740119449720,-23184.99,0.00014273,2]
[353900522,1740119449729,-1532.0,0.00014273,2]
[353900523,1740119449739,-500.0,0.00014273,2]
[353900524,1740119449748,-500.0,0.00014273,2]
[353900525,1740119449757,-1300.19,0.00014273,2]
[353900526,1740119449767,-1032.31,0.00014273,2]
[353900527,1740119449776,-517.04,0.00014273,2]
[353900528,1740119449785,-2344.36,0.00014273,2]
[353900529,1740119449794,-891.26,0.00014273,2]
[353900530,1740119449804,-608.411473,0.00014273,2]
[353900531,1740119449813,-4367.26,0.00014273,2]
[353900532,1740119449822,-500.0,0.00014273,2]
[353900533,1740119449832,-822.25,0.00014273,2]
[353900534,1740119449842,-10184.0,0.00014273,2]
[353900535,1740119449851,-692.82,0.00014273,2]
[353900536,1740119449860,-1434.95,0.00014273,2]
[353900537,1740119449869,-2392.96,0.00014273,2]
[353900538,1740119449879,-2864.58,0.00014273,2]
[353900539,1740119449889,-1738.41,0.00014273,2]
[353900540,1740119449898,-760.7,0.00014273,2]
[353900541,1740119449907,-1375.81,0.00014273,2]
[353900542,1740119449917,-685.81,0.00014273,2]
[353900543,1740119449926,-161.55443447,0.00014273,2]
[353900544,1740119449936,-942.21,0.00014273,2]
[353900545,1740119449946,-2104.53,0.00014273,2]
[353900546,1740119449956,-519.51,0.00014273,2]
[353900547,1740119449965,-810.59,0.00014273,2]
[353900548,1740119449975,-500.0,0.00014273,2]
[353900549,1740119449984,-500.0,0.00014273,2]
[353900550,1740119449994,-500.0,0.00014273,2]
[353900551,1740119450003,-1529.35,0.00014273,2]
[353900552,1740119450012,-500.0,0.00014273,2]
[353900553,1740119450021,-500.0,0.00014273,2]
[353900554,1740119450031,-151.0,0.00014273,2]
[353900555,1740119450040,-500.0,0.00014273,2]
[353900556,1740119450049,-151.0,0.00014273,2]
[353900557,1740119450059,-500.0,0.00014273,2]
[353900558,1740119450069,-4474.47,0.00014273,2]
[353900559,1740119450078,-500.0,0.00014273,2]
[353900560,1740119450087,-521.58,0.00014273,2]
[353900561,1740119450096,-151.0,0.000143,2]
[353900562,1740119450105,-536.128,0.00014327,2]
[353900563,1740119450114,-500.0,0.00014328,2]
[353900564,1740119450124,-822.8,0.00014356,2]
[353900565,1740119450133,-500.0,0.00014356,2]
[353900566,1740119450142,-500.0,0.00014356,2]
[353900567,1740119450151,-500.0,0.00014356,2]
[353900568,1740119450160,-500.0,0.00014356,2]
[353900569,1740119450170,-609.59,0.00014356,2]
[353900570,1740119450180,-500.0,0.00014356,2]